fUST/lending_fUST_20250902
["ID","MTS","AMOUNT","RATE_DAILY","PERIOD"]
[382971991,1756788664598,-480.0,0.00015616,2]
[382971992,1756788664607,-156.36,0.0001564,2]
[382971993,1756788664617,-743.75027178,0.00015864,2]
[382971994,1756788664626,-2500.0,0.00015864,2]
[382971995,1756788664766,-2614.06966356,0.00015864,2]
[382971996,1756788664776,-2500.0,0.00015864,2]
[382971997,1756788664786,-2500.0,0.00015864,2]
[382971998,1756788664795,-2500.0,0.00015864,2]
[382971999,1756788664804,-2500.0,0.00015864,2]
[382972000,1756788664814,-2500.0,0.00015864,2]
[382972001,1756788664823,-541.42,0.0001589,2]
[382972002,1756788664832,-480.0,0.0001589,2]
[382972003,1756788664843,-480.0,0.0001589,2]
[382972004,1756788664854,-530.94,0.0001589,2]
[382972005,1756788664864,-513.32,0.0001589,2]
[382972006,1756788664874,-480.0,0.0001589,2]
[382972007,1756788664884,-480.0,0.0001589,2]
[382972008,1756788664894,-480.0,0.0001589,2]
[382972009,1756788664903,-480.0,0.0001589,2]
[382972010,1756788664913,-519.44,0.0001589,2]
[382972011,1756788664922,-480.0,0.0001589,2]
[382972012,1756788664932,-480.0,0.0001589,2]
[382972013,1756788664942,-512.49,0.0001589,2]
[382972014,1756788664953,-480.0,0.0001589,2]
[382972015,1756788664964,-480.0,0.0001589,2]
[382972016,1756788664974,-495.86,0.0001589,2]
[382972017,1756788664985,-480.0,0.0001589,2]
[382972018,1756788664995,-480.0,0.0001589,2]
[382972019,1756788665005,-480.0,0.0001589,2]
[382972020,1756788665016,-571.71,0.0001589,2]
[382972021,1756788665026,-480.0,0.0001589,2]
[382972022,1756788665037,-643.0,0.0001589,2]
[382972023,1756788665047,-480.0,0.0001589,2]
[382972024,1756788665058,-480.0,0.0001589,2]
[382972025,1756788665070,-541.37,0.0001589,2]
[382972026,1756788665082,-440.53012294,0.0001589,2]
[382972027,1756788665092,-582.31,0.0001589,2]
[382972028,1756788665102,-480.0,0.0001589,2]
[382972029,1756788665112,-696.78,0.0001589,2]
[382972030,1756788665122,-480.0,0.0001589,2]
[382972031,1756788665133,-480.0,0.0001589,2]
[382972032,1756788665143,-370.21350271,0.0001589,2]
[382972033,1756788665152,-480.0,0.0001589,2]
[382972034,1756788665161,-480.0,0.0001589,2]
[382972035,1756788665170,-480.0,0.0001589,2]
[382972036,1756788665179,-594.08,0.0001589,2]
[382972037,1756788665188,-480.0,0.0001589,2]
[382972038,1756788665198,-480.0,0.0001589,2]
[382972039,1756788665207,-970.38092401,0.0001589,2]
[382972040,1756788665225,-526.85907599,0.0001589,2]
[382972041,1756788665234,-538.25,0.0001589,2]
[382972042,1756788665243,-480.0,0.0001589,2]
[382972043,1756788665252,-486.55,0.0001589,2]
[382972044,1756788665262,-480.0,0.0001589,2]
[382972045,1756788665271,-480.0,0.0001589,2]
[382972046,1756788665280,-480.0,0.0001589,2]
[382972047,1756788665289,-480.0,0.0001589,2]
[382972048,1756788665299,-249.42256044,0.0001589,2]
[382972058,1756788746155,1479.90345406,0.00012919,2]
[382972059,1756788757271,1394.94,0.00027,120]
[382972060,1756788793213,3000.0,0.00025,30]
[382972062,1756788865297,300.0,0.00012918,2]
[382972064,1756788889205,300.0,0.00012918,2]
[382972065,1756788912291,53.1379704,0.00012919,2]
[382972066,1756788912331,1146.8620296,0.00012919,2]
[382972067,1756788935134,1200.0,0.00012919,2]
[382972068,1756788959847,1200.0,0.00012919,2]
[382972069,1756788982843,1200.0,0.00012919,2]
[382972070,1756789005911,1200.0,0.00012919,2]
[382972071,1756789023973,4053.1479704,0.000128,2]
[382972072,1756789023997,10000.01,0.000128,2]
[382972073,1756789024022,289.8420296,0.000128,2]
[382972074,1756789029174,1200.0,0.00012919,2]
[382972075,1756789318115,8510.1679704,0.00012334,2]
[382972076,1756789318137,1489.8420296,0.00012334,2]
[382972078,1756789439498,1843.0,0.00030031,60]
[382972079,1756789458945,513.54135208,0.00012912,2]
[382972080,1756789608892,7996.62661832,0.000129,2]
[382972081,1756789608917,10000.01,0.000129,2]
[382972082,1756789608943,10000.01,0.000129,2]
[382972083,1756789608971,10000.01,0.000129,2]
[382972084,1756789608997,10000.01,0.000129,2]
[382972085,1756789609027,10000.01,0.000129,2]
[382972086,1756789609053,10000.01,0.000129,2]
[382972087,1756789609081,10000.01,0.000129,2]
[382972088,1756789609109,10000.01,0.000129,2]
[382972089,1756789609135,10000.01,0.000129,2]
[382972090,1756789623268,-3202.1226919,0.00012213,2]
[382972091,1756789625070,-500.0,0.00012213,2]
[382972092,1756789628432,-500.0,0.00012213,2]
[382972093,1756789628614,-4502.1326919,0.00012213,2]
[382972094,1756789628744,-995.7446162,0.00012213,2]
[382972095,1756789628773,-300.0,0.00012899,2]
[382972096,1756789628801,-1200.0,0.00012899,2]
[382972097,1756789629954,-2113.18951609,0.000129,2]
[382972098,1756789629978,-10000.01,0.000129,2]
[382972099,1756789630039,-10000.01,0.000129,2]
[382972100,1756789638452,-1357.14661163,0.00012771,2]
[382972101,1756789638499,-7285.71677674,0.000129,2]
[382972102,1756789638781,-10000.01,0.000129,2]
[382972103,1756789638897,-10000.01,0.000129,2]
[382972104,1756789639044,-10000.01,0.000129,2]
[382972105,1756789639140,-10000.01,0.000129,2]
[382972106,1756789639242,-10000.01,0.000129,2]
[382972107,1756789639356,-10000.01,0.000129,2]
[382972108,1756789639485,-10000.01,0.000129,2]
[382972109,1756789639651,-10000.01,0.000129,2]
[382972110,1756789639787,-10000.01,0.000129,2]
[382972111,1756789648448,-10000.01,0.000129,2]
[382972112,1756789648602,-10000.01,0.000129,2]
[382972113,1756789648781,-476.01396758,0.00012771,2]
[382972114,1756789648812,-9047.98206484,0.000129,2]
[382972115,1756789648905,-10000.01,0.000129,2]
[382972116,1756789649017,-10000.01,0.000129,2]
[382972117,1756789649134,-10000.01,0.000129,2]
[382972118,1756789649295,-10000.01,0.000129,2]
[382972119,1756789649437,-10000.01,0.000129,2]
[382972120,1756789649538,-10000.01,0.000129,2]
[382972121,1756789649738,-10000.01,0.000129,2]
[382972122,1756789658471,-613.39856,0.00012771,2]
[382972123,1756789665795,8773.21288,0.00012771,2]
[382972124,1756789665817,9471.14158156,0.00012771,2]
[382972125,1756789673788,2865.82241867,0.00012672,2]
[382972126,1756789681798,1242.1,0.00012329,2]
[382972127,1756789690319,2865.82241867,0.00012672,2]
[382972128,1756789692229,1035.08,0.00012329,2]
[382972129,1756789698401,1991.18516266,0.00012672,2]
[382972130,1756789698424,874.63725601,0.00012672,2]
[382972131,1756789702648,862.57,0.00012329,2]
[382972132,1756789705467,4020.7636576,0.00012277,2]
[382972133,1756789713059,718.81,0.00012329,2]
[382972134,1756789714474,200.9889155,0.00012179,2]
[382972135,1756789714892,2865.82241867,0.00012672,2]
[382972136,1756789722862,456.41775222,0.00012672,2]
[382972137,1756789722885,2409.40466645,0.00012672,2]
[382972138,1756789723438,599.01,0.00012329,2]
[382972139,1756789733827,499.17,0.00012329,2]
[382972140,1756789739415,2865.82241867,0.00012672,2]
[382972141,1756789744621,415.98,0.00012329,2]
[382972142,1756789748017,2865.82241867,0.00012672,2]
[382972143,1756789755197,344.80049621,0.00012329,2]
[382972144,1756789755224,1.84950379,0.00012329,2]
[382972145,1756789764037,2865.82241867,0.00012672,2]
[382972146,1756789765688,346.65,0.00012329,2]
[382972147,1756789772605,2865.82241867,0.00012672,2]
[382972148,1756789776669,231.1,0.00012329,2]
[382972149,1756789783127,203.89848199,0.000128,2]
[382972150,1756789788004,245.2,0.00012329,2]
[382972151,1756789788705,2865.82241867,0.00012672,2]
[382972152,1756789797144,373.84475821,0.00012672,2]
[382972153,1756789797170,2491.97766046,0.00012672,2]
[382972154,1756789798701,204.33,0.00012329,2]
[382972155,1756789809384,170.28,0.00012329,2]
[382972156,1756789812485,2865.82241867,0.00012672,2]
[382972157,1756789819791,851.41,0.00012329,2]
[382972158,1756789820993,1186.06703197,0.00012672,2]
[382972159,1756789825935,2230.1228889,0.00012109,2]
[382972160,1756789825958,10000.01,0.00012109,2]
[382972161,1756789825981,10000.01,0.00012109,2]
[382972162,1756789826182,10000.01,0.00012109,2]
[382972163,1756789826206,4049.6204976,0.00012109,2]
[382972188,1756789832461,-1118.45157058,0.000128,2]
[382972189,1756789836759,1747.37084809,0.00012672,2]
[382972193,1756789838367,-1747.37084809,0.000128,2]
[382972194,1756789838378,-1200.0,0.00012898,2]
[382972195,1756789838388,-300.0,0.00012899,2]
[382972196,1756789838398,-300.0,0.00012899,2]
[382972197,1756789838409,-300.0,0.00012899,2]
[382972198,1756789838420,-300.0,0.00012899,2]
[382972199,1756789838430,-300.0,0.00012899,2]
[382972200,1756789838440,-8765.77083845,0.000129,2]
[382972201,1756789838477,-3241.23471311,0.000129,2]
[382972226,1756789840694,-0.00289184,0.000129,2]
[382972228,1756789840710,-6237.34601816,0.000129,2]
[382972230,1756789840720,-2347.87260389,0.00013174,2]
[382972232,1756789840730,-250.0,0.00013174,2]
[382972234,1756789840739,-263.54135208,0.00013174,2]
[382972236,1756789840749,-194.09347566,0.0001318,2]
[382972238,1756789840758,-500.0,0.0001318,2]
[382972240,1756789840768,-500.0,0.0001318,2]
[382972242,1756789840777,-500.0,0.0001318,2]
[382972244,1756789840787,-222.05159638,0.0001318,2]
[382972247,1756789840797,-500.0,0.0001318,2]
[382972249,1756789840806,-500.0,0.0001318,2]
[382972251,1756789840816,-500.0,0.0001318,2]
[382972252,1756789840825,-500.0,0.0001318,2]
[382972254,1756789840835,-500.0,0.0001318,2]
[382972257,1756789840844,-500.0,0.0001318,2]
[382972259,1756789840854,-500.0,0.0001318,2]
[382972261,1756789840864,-426.50049187,0.0001318,2]
[382972262,1756789840874,-500.0,0.0001318,2]
[382972265,1756789840884,-500.0,0.0001318,2]
[382972267,1756789840893,-500.0,0.0001318,2]
[382972269,1756789840903,-500.0,0.0001318,2]
[382972271,1756789840912,-500.0,0.0001318,2]
[382972273,1756789840922,-500.0,0.0001318,2]
[382972275,1756789840931,-615.40882119,0.0001318,2]
[382972277,1756789840940,-322.10821097,0.0001318,2]
[382972279,1756789840950,-590.84988079,0.0001318,2]
[382972281,1756789840960,-500.0,0.0001318,2]
[382972283,1756789840969,-500.0,0.0001318,2]
[382972285,1756789840984,-500.0,0.0001318,2]
[382972287,1756789840993,-500.0,0.0001318,2]
[382972289,1756789841003,-500.0,0.0001318,2]
[382972291,1756789841012,-500.0,0.0001318,2]
[382972293,1756789841022,-500.0,0.0001318,2]
[382972295,1756789841031,-500.0,0.0001318,2]
[382972297,1756789841040,-500.0,0.0001318,2]
[382972299,1756789841049,-500.0,0.0001318,2]
[382972301,1756789841059,-500.0,0.0001318,2]
[382972303,1756789841068,-500.0,0.0001318,2]
[382972305,1756789841078,-249.2188994,0.00013181,2]
[382972307,1756789841091,-502.36346431,0.00013181,2]
[382972309,1756789841100,-502.36346431,0.00013181,2]
[382972311,1756789841109,-502.36346431,0.00013181,2]
[382972313,1756789841119,-502.36346431,0.00013181,2]
[382972315,1756789841129,-502.36346431,0.00013181,2]
[382972317,1756789841139,-502.36346431,0.00013181,2]
[382972319,1756789841148,-502.36346431,0.00013181,2]
[382972321,1756789841160,-502.36346431,0.00013181,2]
[382972324,1756789841170,-502.36346431,0.00013181,2]
[382972326,1756789841180,-502.36346431,0.00013181,2]
[382972328,1756789841189,-502.36346431,0.00013181,2]
[382972330,1756789841198,-502.36346431,0.00013181,2]
[382972332,1756789841207,-502.36346431,0.00013181,2]
[382972334,1756789841217,-502.36346431,0.00013181,2]
[382972336,1756789841227,-502.36346431,0.00013181,2]
[382972338,1756789841236,-502.36346431,0.00013181,2]
[382972340,1756789841247,-502.36346431,0.00013181,2]
[382972342,1756789841256,-502.36346431,0.00013181,2]
[382972344,1756789841265,-502.36346431,0.00013181,2]
[382972346,1756789841275,-512.41073361,0.00013181,2]
[382972348,1756789841284,-512.41073361,0.00013181,2]
[382972350,1756789841294,-512.41073361,0.00013181,2]
[382972352,1756789841303,-512.41073361,0.00013181,2]
[382972354,1756789841313,-512.41073361,0.00013181,2]
[382972356,1756789841323,-512.41073361,0.00013181,2]
[382972358,1756789841332,-512.41073361,0.00013181,2]
[382972360,1756789841342,-512.41073361,0.00013181,2]
[382972362,1756789841351,-63180.91277244,0.00013182,2]
[382972473,1756789843584,-60795.58533568,0.00013182,2]
[382972474,1756789843594,-600.0,0.0001331,2]
[382972475,1756789843605,-975.0,0.00013662,2]
[382972476,1756789843617,-632.0,0.00013662,2]
[382972477,1756789843627,-2153.0,0.00013662,2]
[382972478,1756789843638,-342.33331187,0.00013698,2]
[382972479,1756789843648,-480.0,0.00013698,2]
[382972480,1756789843658,-480.0,0.00013698,2]
[382972481,1756789843669,-482.2095685,0.00013698,2]
[382972482,1756789843678,-480.0,0.00013698,2]
[382972483,1756789843688,-480.0,0.00013698,2]
[382972484,1756789843700,-410.28139302,0.00013698,2]
[382972485,1756789843711,-480.0,0.00013698,2]
[382972486,1756789843723,-480.0,0.00013698,2]
[382972487,1756789843733,-480.0,0.00013698,2]
[382972488,1756789843743,-480.0,0.00013698,2]
[382972489,1756789843754,-480.0,0.00013698,2]
[382972490,1756789843763,-480.0,0.00013698,2]
[382972491,1756789843773,-480.0,0.00013698,2]
[382972492,1756789843782,-480.0,0.00013698,2]
[382972493,1756789843792,-480.0,0.00013698,2]
[382972494,1756789843803,-480.0,0.00013698,2]
[382972495,1756789843813,-480.0,0.00013698,2]
[382972496,1756789843822,-480.0,0.00013698,2]
[382972497,1756789843833,-480.0,0.00013698,2]
[382972498,1756789843843,-480.0,0.00013698,2]
[382972499,1756789843853,-480.0,0.00013698,2]
[382972500,1756789843864,-480.0,0.00013698,2]
[382972501,1756789843874,-480.0,0.00013698,2]
[382972502,1756789843885,-480.0,0.00013698,2]
[382972503,1756789843896,-480.0,0.00013698,2]
[382972504,1756789843906,-480.0,0.00013698,2]
[382972505,1756789843916,-480.0,0.00013698,2]
[382972506,1756789843926,-481.70986549,0.00013698,2]
[382972507,1756789843936,-480.0,0.00013698,2]
[382972508,1756789843946,-480.0,0.00013698,2]
[382972509,1756789843957,-480.0,0.00013698,2]
[382972510,1756789843966,-483.37474943,0.00013698,2]
[382972511,1756789843975,-480.0,0.00013698,2]
[382972512,1756789843985,-480.0,0.00013698,2]
[382972513,1756789843995,-480.0,0.00013698,2]
[382972514,1756789844005,-480.0,0.00013698,2]
[382972515,1756789844014,-480.0,0.00013698,2]
[382972516,1756789844023,-480.0,0.00013698,2]
[382972517,1756789844035,-480.0,0.00013698,2]
[382972518,1756789844044,-1068.12,0.00013698,2]
[382972519,1756789844054,-2802.72,0.00013698,2]
[382972520,1756789844063,-480.0,0.00013698,2]
[382972521,1756789844074,-480.0,0.00013698,2]
[382972522,1756789844085,-480.0,0.00013698,2]
[382972523,1756789844098,-480.0,0.00013698,2]
[382972524,1756789844108,-480.0,0.00013698,2]
[382972525,1756789844118,-480.0,0.00013698,2]
[382972526,1756789844127,-669.72,0.00013698,2]
[382972527,1756789844137,-480.0,0.00013698,2]
[382972528,1756789844147,-1010.2,0.00013698,2]
[382972529,1756789844158,-480.0,0.00013698,2]
[382972530,1756789844168,-480.0,0.00013698,2]
[382972531,1756789844178,-682.76,0.00013698,2]
[382972532,1756789844188,-480.0,0.00013698,2]
[382972533,1756789844199,-480.0,0.00013698,2]
[382972534,1756789844211,-480.0,0.00013698,2]
[382972535,1756789844221,-480.0,0.00013698,2]
[382972536,1756789844232,-480.0,0.00013698,2]
[382972537,1756789844243,-480.0,0.00013698,2]
[382972538,1756789844254,-480.0,0.00013698,2]
[382972539,1756789844479,-480.0,0.00013698,2]
[382972540,1756789844490,-480.0,0.00013698,2]
[382972541,1756789844499,-480.0,0.00013698,2]
[382972542,1756789844508,-480.0,0.00013698,2]
[382972543,1756789844518,-480.0,0.00013698,2]
[382972544,1756789844528,-658.62,0.00013698,2]
[382972545,1756789844537,-2994.28,0.00013698,2]
[382972546,1756789844547,-798.89,0.00013698,2]
[382972547,1756789844556,-1202.46,0.00013698,2]
[382972548,1756789844565,-480.0,0.00013698,2]
[382972549,1756789844575,-480.0,0.00013698,2]
[382972550,1756789844585,-480.0,0.00013698,2]
[382972551,1756789844594,-480.0,0.00013698,2]
[382972552,1756789844603,-480.0,0.00013698,2]
[382972553,1756789844613,-1492.3,0.00013698,2]
[382972554,1756789844622,-480.0,0.00013698,2]
[382972555,1756789844631,-564.75,0.00013698,2]
[382972556,1756789844641,-480.0,0.00013698,2]
[382972557,1756789844650,-480.0,0.00013698,2]
[382972558,1756789844659,-579.22,0.00013698,2]
[382972559,1756789844670,-480.0,0.00013698,2]
[382972560,1756789844679,-945.17,0.00013698,2]
[382972561,1756789844688,-551.46,0.00013698,2]
[382972562,1756789844698,-480.0,0.00013698,2]
[382972563,1756789844707,-755.49,0.00013698,2]
[382972564,1756789844716,-480.0,0.00013698,2]
[382972565,1756789844725,-480.0,0.00013698,2]
[382972566,1756789844735,-480.0,0.00013698,2]
[382972567,1756789844744,-480.0,0.00013698,2]
[382972568,1756789844753,-1013.9,0.00013698,2]
[382972569,1756789844763,-480.0,0.00013698,2]
[382972570,1756789844772,-480.0,0.00013698,2]
[382972571,1756789844781,-480.0,0.00013698,2]
[382972572,1756789844790,-480.0,0.00013698,2]
[382972573,1756789844799,-480.0,0.00013698,2]
[382972574,1756789844808,-935.78,0.00013698,2]
[382972575,1756789844817,-480.0,0.00013698,2]
[382972576,1756789844826,-480.0,0.00013698,2]
[382972577,1756789844835,-480.0,0.00013698,2]
[382972578,1756789844845,-480.0,0.00013698,2]
[382972579,1756789844854,-480.0,0.00013698,2]
[382972580,1756789844863,-480.0,0.00013698,2]
[382972581,1756789844872,-480.0,0.00013698,2]
[382972582,1756789844881,-480.0,0.00013698,2]
[382972583,1756789844891,-2146.93,0.00013698,2]
[382972584,1756789844900,-480.0,0.00013698,2]
[382972585,1756789844909,-480.0,0.00013698,2]
[382972586,1756789844920,-1314.802278,0.00013699,2]
[382972587,1756789844929,-326.84862,0.00013699,2]
[382972588,1756789844939,-151.0,0.00013774,2]
[382972589,1756789844948,-552.429537,0.00013774,2]
[382972590,1756789844957,-151.0,0.00013774,2]
[382972591,1756789844966,-552.429537,0.00013774,2]
[382972592,1756789844975,-151.0,0.00013774,2]
[382972593,1756789844985,-552.429537,0.00013774,2]
[382972594,1756789844994,-151.0,0.00013774,2]
[382972595,1756789845003,-552.429537,0.00013774,2]
[382972596,1756789845012,-156.754692,0.00013774,2]
[382972597,1756789845021,-151.0,0.00013774,2]
[382972598,1756789845030,-151.0,0.00013774,2]
[382972599,1756789845039,-151.0,0.00013774,2]
[382972600,1756789845050,-540.69399,0.00013774,2]
[382972601,1756789845059,-540.69399,0.00013774,2]
[382972602,1756789845069,-540.69399,0.00013774,2]
[382972603,1756789845078,-540.69399,0.00013774,2]
[382972604,1756789845091,-2970.89375745,0.00013872,2]
[382972605,1756789845101,-160.0,0.00013877,2]
[382972606,1756789845111,-11369.04596444,0.00013879,2]
[382972607,1756789845120,-160.0,0.00013884,2]
[382972608,1756789845131,-160.0,0.00013884,2]
[382972609,1756789845140,-232.87008258,0.00013884,2]
[382972610,1756789845150,-846.21894513,0.00013884,2]
[382972611,1756789845159,-217.47380718,0.00013884,2]
[382972612,1756789845172,-530.22964562,0.00013884,2]
[382972613,1756789845182,-160.0,0.00013884,2]
[382972614,1756789845191,-417.15472785,0.00013884,2]
[382972615,1756789845200,-316.50244073,0.00013884,2]
[382972616,1756789845210,-160.0,0.00013884,2]
[382972617,1756789845220,-160.0,0.00013884,2]
[382972618,1756789845230,-480.0,0.00013972,2]
[382972619,1756789845240,-480.0,0.00013972,2]
[382972620,1756789845249,-480.0,0.00013972,2]
[382972621,1756789845259,-480.0,0.00013972,2]
[382972622,1756789845269,-480.0,0.00013972,2]
[382972623,1756789845279,-480.0,0.00013972,2]
[382972624,1756789845288,-480.0,0.00013972,2]
[382972625,1756789845297,-480.0,0.00013972,2]
[382972626,1756789845307,-480.0,0.00013972,2]
[382972627,1756789845316,-480.0,0.00013972,2]
[382972628,1756789845325,-480.0,0.00013972,2]
[382972629,1756789845336,-480.0,0.00013972,2]
[382972630,1756789845346,-480.0,0.00013972,2]
[382972631,1756789845355,-480.0,0.00013972,2]
[382972632,1756789845365,-160.55515879,0.00013972,2]
[382972633,1756789845374,-480.0,0.00013972,2]
[382972634,1756789845383,-480.0,0.00013972,2]
[382972635,1756789845393,-480.0,0.00013972,2]
[382972636,1756789845402,-480.0,0.00013972,2]
[382972637,1756789845411,-480.0,0.00013972,2]
[382972638,1756789845422,-480.0,0.00013972,2]
[382972639,1756789845431,-480.0,0.00013972,2]
[382972640,1756789845440,-480.0,0.00013972,2]
[382972641,1756789845450,-480.0,0.00013972,2]
[382972642,1756789845459,-480.0,0.00013972,2]
[382972643,1756789845468,-480.0,0.00013972,2]
[382972644,1756789845477,-462.24185063,0.00013972,2]
[382972645,1756789845486,-480.0,0.00013972,2]
[382972646,1756789845496,-480.0,0.00013972,2]
[382972647,1756789845505,-480.0,0.00013972,2]
[382972648,1756789845514,-561.79381313,0.00013972,2]
[382972649,1756789845525,-480.0,0.00013972,2]
[382972650,1756789845534,-480.0,0.00013972,2]
[382972651,1756789845543,-480.0,0.00013972,2]
[382972652,1756789845553,-480.0,0.00013972,2]
[382972653,1756789845562,-1068.12,0.00013972,2]
[382972654,1756789845571,-2802.72,0.00013972,2]
[382972655,1756789845581,-480.0,0.00013972,2]
[382972656,1756789845591,-480.0,0.00013972,2]
[382972657,1756789845600,-480.0,0.00013972,2]
[382972658,1756789845610,-480.0,0.00013972,2]
[382972659,1756789845619,-480.0,0.00013972,2]
[382972660,1756789845629,-480.0,0.00013972,2]
[382972661,1756789845638,-669.72,0.00013972,2]
[382972662,1756789845648,-286.68590752,0.00013972,2]
[382972664,1756789854414,750.0,0.00012919,2]
[382972665,1756789862798,7750.0,0.00012919,2]
[382972666,1756789885277,1500.01,0.00012919,2]
[382972667,1756789885301,6249.99,0.00012919,2]
[382972668,1756789909297,7750.0,0.00012919,2]
[382972669,1756789927075,168.0,8.2e-07,2]
[382972670,1756789932876,2082.01,0.00012919,2]
[382972671,1756789932899,3750.02,0.00012919,2]
[382972672,1756789932922,1917.97,0.00012919,2]
[382972673,1756789945496,203.89848199,0.000128,2]
[382972674,1756789952987,1000.0,0.00012769,2]
[382972675,1756789955810,7750.0,0.00012919,2]
[382972677,1756790044926,158.71984996,0.00012981,2]
[382972678,1756790086396,887.39166805,0.00012919,2]
[382972679,1756790086418,6862.60833195,0.00012919,2]
[382972680,1756790103228,3137.40166805,0.0001295,2]
[382972681,1756790103255,8943.10853316,0.0001295,2]
[382972682,1756790111721,1056.90146684,0.00012949,2]
[382972683,1756790111743,143.09853316,0.00012949,2]
[382972684,1756790114230,3086.2473159,0.00012684,2]
[382972685,1756790127266,2400.0,0.00012949,2]
[382972686,1756790135166,2400.0,0.00012949,2]
[382972687,1756790150597,1970.66415094,0.00012949,2]
[382972688,1756790150620,429.33584906,0.00012949,2]
[382972689,1756790158666,2400.0,0.00012949,2]
[382972690,1756790167345,301.1785948,0.00012711,2]
[382972691,1756790167613,738.53282814,0.00012949,2]
[382972692,1756790176368,300.0,0.00012948,2]
[382972693,1756790185927,300.0,0.00012948,2]
[382972694,1756790202572,300.0,0.00012948,2]
[382972695,1756790212190,300.0,0.00012948,2]
[382972696,1756790219918,8800.01,0.00012543,2]
[382972697,1756790219939,1200.0,0.00012543,2]
[382972698,1756790228396,2400.0,0.00012949,2]
[382972699,1756790236772,1200.0,0.00012948,2]
[382972700,1756790252143,1200.0,0.00012948,2]
[382972701,1756790261202,350.0,0.00012948,2]
[382972702,1756790276693,1200.0,0.00012948,2]
[382972703,1756790300059,1500.0,0.00012948,2]
[382972704,1756790324023,1500.0,0.00012948,2]
[382972705,1756790340905,291.82,0.00012329,2]
[382972706,1756790347950,197.4010417,0.00012557,2]
[382972707,1756790348597,1500.0,0.00012948,2]
[382972708,1756790351316,315.53,0.00012329,2]
[382972710,1756790361968,323.24,0.00012329,2]
[382972711,1756790371186,422.0189583,0.00012948,2]
[382972712,1756790371213,1077.9810417,0.00012948,2]
[382972713,1756790372392,528.96,0.00012329,2]
[382972714,1756790382774,440.8,0.00012329,2]
[382972715,1756790393185,367.33,0.00012329,2]
[382972716,1756790395255,1500.0,0.00012948,2]
[382972717,1756790403619,306.11,0.00012329,2]
[382972718,1756790407696,666.0,0.00012557,2]
[382972719,1756790412216,600.0,0.00012557,2]
[382972720,1756790414040,255.09,0.00012329,2]
[382972721,1756790418120,1200.0,0.00012948,2]
[382972722,1756790424506,212.58,0.00012329,2]
[382972723,1756790426616,1054.56365184,0.00012948,2]
[382972724,1756790435095,177.15,0.00012329,2]
[382972725,1756790435413,1054.56365184,0.00012948,2]
[382972726,1756790443468,1200.0,0.00012948,2]
[382972727,1756790445369,885.75,0.00012329,2]
[382972728,1756790452649,80.07269632,0.00012948,2]
[382972729,1756790452672,1119.92730368,0.00012948,2]
[382972730,1756790454388,516.88366276,0.00012689,2]
[382972731,1756790461038,1200.0,0.00012948,2]
[382972732,1756790469700,1200.0,0.00012948,2]
[382972733,1756790478069,1063.69095552,0.00012948,2]
[382972734,1756790486653,1063.69095552,0.00012948,2]
[382972735,1756790494559,1200.0,0.00012948,2]